Cogmind - Beta 14 @@@ ROGUE MODE // 2024.08.16 @ 12:18:43 Player: TheProctologist Result: Self-destructed Performance ------------- Evolutions (0) 0 Regions Visited (4) 800 Robots Destroyed (22) 110 Value Destroyed (397) 397 Prototype IDs (0) 0 Alien Tech Used (0) 0 Bonus (300) 300 TOTAL SCORE: 1607 Bonus ------- Aligned with FarCom 300 Cogmind --------- Core Integrity 54/250 Matter 252/300 Energy 81/100 System Corruption 4% Temperature Cool (0) Movement Core (350) Ox6 Location -9/Mines Parts ------- > --- POWER (1) -------- (None) > --- PROPULSION (2) --- (None) > --- UTILITY (2) ------ Large Storage Unit > --- WEAPON (2) ------- (None) > --- INVENTORY (15) --- Ion Engine Improved Ion Engine Improved Heat Sink High-capacity Storage Unit Targeting Computer ECM Suite Hacking Suite EM Pulse Gun AWS/Autocannon Datajack Plasma Cutter Peak State ------------ > --- POWER ------------ Ion Engine > --- PROPULSION ------- Light Treads Light Treads > --- UTILITY ---------- Large Storage Unit Improved Terrain Scanner > --- WEAPON ----------- Particle Gun Assault Rifle > --- INVENTORY -------- Ion Engine Improved Ion Engine Improved Heat Sink High-capacity Storage Unit Targeting Computer ECM Suite Light Armor Plating Hacking Suite EM Pulse Gun AWS/Autocannon Datajack Plasma Cutter Heavy Hammer [Rating: 14] Favorites ----------- Power Light Ion Engine Engine Light Ion Engine Propulsion Light Treads Treads Light Treads Utility Improved Terrain Scanner Device Improved Terrain Scanner Storage Large Storage Unit Protection Light Armor Plating Weapon Assault Rifle Energy Gun Particle Gun Ballistic Gun Assault Rifle Launcher Grenade Launcher Impact Weapon Heavy Hammer Build | -11 -10 -10 -10 -9 ------- Run | Yrd Mat Min Exi Min Slots Evolved . | . . . . . Power . | . . . . . Propulsion . | . . . . . Utility . | . . . . . Weapon . | . . . . . Parts Attached 21 | 7 4 4 4 2 Power 2 | 1 . . 1 . Engine 2 | 1 . . 1 . Core . | . . . . . Reactor . | . . . . . Propulsion 3 | 2 . 1 . . Treads 3 | 2 . 1 . . Leg . | . . . . . Wheel . | . . . . . Hover . | . . . . . Flight . | . . . . . Utility 5 | 2 2 . . 1 Device 1 | 1 . . . . Storage 3 | 1 2 . . . Processor . | . . . . . Hackware . | . . . . . Protection 1 | . . . . 1 Artifact . | . . . . . Weapon 11 | 2 2 3 3 1 Energy Gun 5 | 2 . 1 2 . Energy Cannon . | . . . . . Ballistic Gun 2 | . . 1 1 . Ballistic Cannon . | . . . . . Launcher 2 | . 1 1 . . Special Weapon . | . . . . . Impact Weapon 2 | . 1 . . 1 Slashing Weapon . | . . . . . Piercing Weapon . | . . . . . Special Melee Weapon . | . . . . . Unidentified Prototypes . | . . . . . Parts Lost 11 | . 1 2 . 8 Power 1 | . . . . 1 Propulsion 3 | . . 1 . 2 Utility 2 | . . . . 2 Weapon 5 | . 1 1 . 3 Highest Loss Streak 8 | . 1 1 . 8 To Critical Strikes . | . . . . . Average Slot Usage (%) 98 | . 96 99 98 91 Engine 13 | . 14 14 13 13 Treads 27 | . 28 27 28 24 Device 13 | . 14 14 14 10 Storage 14 | . 14 14 14 14 Energy Gun 9 | . 7 7 13 13 Ballistic Gun 10 | . . 12 13 11 Launcher 2 | . 6 2 . . Impact Weapon 4 | . 10 4 . . Peak Build Rating 14 | 9 11 12 14 14 Average Rating 11 | 5 10 11 12 13 On Entrance 9 | . 9 11 12 14 Naked Turns . | . . . . . Heaviest Build 47 | 13 47 30 31 34 Greatest Support 40 | 40 40 40 40 40 Greatest Overweight (x) 3 | 3 1 1 . 1 Average Overweight (x) . | . . . . . Largest Inventory Capacity 20 | 8 20 15 15 15 Average Capacity 14 | 7 13 15 15 15 Most Carried 15 | 2 12 15 15 15 Average Carried 12 | 1 7 14 14 14 Final Capacity 15 | 8 15 15 15 15 Final Carried 15 | 2 12 15 15 13 Class Distribution -------------------- 93% | Mutant 6% | Skirmisher Dominant Class ---------------- Mutant | -10/Materials Mutant | -10/Mines Mutant | -10/Exiles Skirmisher | -9/Mines Resources | -11 -10 -10 -10 -9 ----------- Run | Yrd Mat Min Exi Min Matter Collected 405 | 270 35 100 . . Remotely . | . . . . . Salvage Created 537 | 114 221 192 . 10 Parts 40 | 6 9 25 . . Haulers Intercepted . | . . . . . Recyclers Shooed . | . . . . . Parts Field Recycled . | . . . . . Retrieved Matter . | . . . . . Parts Self-Destructed . | . . . . . Prevented . | . . . . . Kills | -11 -10 -10 -10 -9 ------- Run | Yrd Mat Min Exi Min Combat Hostiles Destroyed 18 | . 4 13 . 1 Melee 2 | . 1 1 . . Guns 7 | . 2 4 . 1 AOE 6 | . . 6 . . Classes Destroyed 9 | 2 3 3 . 1 Builder 1 | . . 1 . . Tunneler 1 | 1 . . . . Recycler 1 | 1 . . . . Operator 1 | . 1 . . . Watcher 1 | . 1 . . . Swarmer 12 | . . 12 . . Grunt 4 | . 4 . . . Sentry 1 | . . 1 . . Assembled 1 | . . . . 1 Best Kill Streak 6 | 2 2 6 . 1 Combat Bots Only 6 | . 2 6 . 1 Max Kills in Single Turn 3 | 1 1 3 . 1 Gunslinging . | . . . . . Exploded 3 | . . 3 . . Melee 1 | . 1 1 . . Uniques/NPCs Destroyed . | . . . . . Combat | -11 -10 -10 -10 -9 -------- Run | Yrd Mat Min Exi Min Hostile Shots Fired 118 | . 21 69 . 28 Missed 24 | . 5 15 . 4 Damage Taken 1299 | . 200 497 . 602 Core 196 | . 26 115 . 55 Absorbed by Shields . | . . . . . Core Remaining (%) 100 | 100 . . . . Volleys Fired 26 | 5 4 15 . 2 Largest 2 | 2 2 2 . 2 Hottest 85 | 80 80 85 . 85 Shots Fired 46 | 10 8 24 . 4 Gun 41 | 10 8 19 . 4 Cannon . | . . . . . Launcher 5 | . . 5 . . Special . | . . . . . Kinetic 16 | . . 14 . 2 Thermal 7 | . . 5 . 2 Explosive 5 | . . 5 . . Electromagnetic 18 | 10 8 . . . Robot Hit Streak 7 | 3 7 4 . 4 Robot Miss Streak 4 | 2 1 4 . 1 Penetration Max . | . . . . . Secondary Targets 2 | . 1 . . 1 Max Gunslinging Chain 1 | . 1 . . 1 Shots Hit Robots 43 | 5 19 15 . 4 Core Hits 27 | 3 8 14 . 2 Critical Kills . | . . . . . Critical Parts Destroyed . | . . . . . Critical Strikes 1 | . . 1 . . Burn 1 | . . 1 . . Melee Attacks 26 | . 16 8 . 2 Impact 26 | . 16 8 . 2 Slashing . | . . . . . Piercing . | . . . . . Sneak Attacks 1 | . 1 . . . Combat Hostiles . | . . . . . Follow-up Attacks . | . . . . . Damage Inflicted 1396 | 67 604 631 . 94 Guns 354 | 67 96 133 . 58 Cannons . | . . . . . Explosions 302 | . . 302 . . Melee 740 | . 508 196 . 36 Ramming . | . . . . . Kinetic 98 | . . 74 . 24 Thermal 93 | . . 59 . 34 Explosive 302 | . . 302 . . Electromagnetic 163 | 67 96 . . . Impact 740 | . 508 196 . 36 Slashing . | . . . . . Piercing . | . . . . . Highest Corruption 4 | . . . . 4 Average Corruption 4 | . . . . 4 Corruption Purged . | . . . . . Corruption Blocked . | . . . . . Effects 2 | . . . . 2 Message Errors 1 | . . . . 1 Energy Discharges 1 | . . . . 1 Overload Shots . | . . . . . Overflow Damage 121 | . 61 60 . . Projectiles . | . . . . . Explosions 22 | . . 22 . . Melee 99 | . 61 38 . . Knockbacks 4 | . 3 1 . . Impact 4 | . 3 1 . . Kinetic . | . . . . . Secondary . | . . . . . Self-Inflicted Damage 36 | . . 36 . . Shots 2 | . . 2 . . Rammed . | . . . . . Targets Rammed . | . . . . . Kicked . | . . . . . Crushed . | . . . . . Highest Temperature 120 | 54 96 120 . 48 Average Temperature 43 | 26 50 61 . 24 Received Heat Transfer 120 | . 111 9 . . Siege Activations . | . . . . . Robots Corrupted 4 | . 2 2 . . Combat Hostiles 3 | . 1 2 . . Parts Fried 5 | . 3 2 . . Impact Corruptions 7 | . 4 3 . . Robots Melted . | . . . . . Combat Hostiles . | . . . . . Parts Melted . | . . . . . Heat Transferred 296 | . . 222 . 74 Parts Sabotaged . | . . . . . Parts Stolen . | . . . . . Parts Stripped . | . . . . . Power Chain Reactions . | . . . . . Alert | -11 -10 -10 -10 -9 ------- Run | Yrd Mat Min Exi Min Peak Influence 311 | 10 175 311 . . Initial 67 | . 6 67 . . Average 157 | 1 98 219 . . Maximum Alert Level 1 | . . 1 . . Low Security (%) 53 | 100 100 23 . 100 Level 1 46 | . . 76 . . Level 2 . | . . . . . Level 3 . | . . . . . Level 4 . | . . . . . Level 5 . | . . . . . High Security . | . . . . . Max Security . | . . . . . Squads Dispatched 3 | . 3 . . . Investigation 1 | . 1 . . . Extermination . | . . . . . Reinforcement 2 | . 2 . . . Assault . | . . . . . Garrison . | . . . . . Intercept . | . . . . . Searches Triggered . | . . . . . Construction Impeded . | . . . . . Haulers Reinforced . | . . . . . Active Scanning Responses . | . . . . . Cargo Convoy Interrupts . | . . . . . Stealth | -11 -10 -10 -10 -9 --------- Run | Yrd Mat Min Exi Min Distress Signals . | . . . . . Communications Jammed . | . . . . . Distress Signals . | . . . . . Times Spotted 36 | . 10 13 . 13 Peak Tracking Total 9 | . 2 6 . 9 Tactical Retreats 2 | . 1 1 . . Traps | -11 -10 -10 -10 -9 ------- Run | Yrd Mat Min Exi Min Traps Triggered 1 | . 1 . . . Indirectly . | . . . . . Trap Hack Attempts . | . . . . . Triggered . | . . . . . Disarmed . | . . . . . Reprogrammed . | . . . . . Reused . | . . . . . Traps Extracted . | . . . . . Installed . | . . . . . Triggered . | . . . . . Most Traps Carried 1 | . . 1 1 . Machines | -11 -10 -10 -10 -9 ---------- Run | Yrd Mat Min Exi Min Machines Disabled 2 | . . 2 . . Max in Single Turn 1 | . . 1 . . Machines Repaired . | . . . . . Machines Dismantled . | . . . . . Machines Sabotaged . | . . . . . Overloaded Fab Kills . | . . . . . Hacking | -11 -10 -10 -10 -9 --------- Run | Yrd Mat Min Exi Min Machines Accessed 1 | . 1 . . . Terminals 1 | . 1 . . . Fabricators . | . . . . . Repair Stations . | . . . . . Recycling Units . | . . . . . Scanalyzers . | . . . . . Garrison Access . | . . . . . Total Hacks 1 | . 1 . . . Successful 1 | . 1 . . . Failed . | . . . . . Catastrophic . | . . . . . Database Lockouts . | . . . . . Manual 1 | . . . 1 . Terminals 1 | . 1 . . . Fabricators . | . . . . . Repair Stations . | . . . . . Recycling Units . | . . . . . Scanalyzers . | . . . . . Garrison Access . | . . . . . Terminal Hacks 1 | . 1 . . . Branch Access Points 1 | . 1 . . . Fabricator Hacks . | . . . . . Repair Station Hacks . | . . . . . Recycling Unit Hacks . | . . . . . Scanalyzer . | . . . . . Garrison Access Hacks . | . . . . . Unauthorized Hacks . | . . . . . Terminals . | . . . . . Fabricators . | . . . . . Repair Stations . | . . . . . Recycling Units . | . . . . . Scanalyzers . | . . . . . Garrison Access . | . . . . . Data Cores Recovered . | . . . . . Used . | . . . . . Hacking Detections . | . . . . . Full Trace Events . | . . . . . Feedback Events . | . . . . . Feedback Blocked . | . . . . . Robot Schematics Acquired . | . . . . . Robots Built . | . . . . . Authchips . | . . . . . Time . | . . . . . Total Robot Build Rating . | . . . . . Part Schematics Acquired . | . . . . . Parts Built . | . . . . . Authchips . | . . . . . Time . | . . . . . Total Part Build Rating . | . . . . . Parts Repaired . | . . . . . Time . | . . . . . Parts Recycled . | . . . . . Recycled Matter . | . . . . . Retrieved Matter . | . . . . . Retrieved Components . | . . . . . Parts Scanalyzed . | . . . . . Part Schematics Acquired . | . . . . . Parts Damaged . | . . . . . Bothacking | -11 -10 -10 -10 -9 ------------ Run | Yrd Mat Min Exi Min Used RIF Installer . | . . . . . Robots Hacked . | . . . . . Non-combat . | . . . . . Combat . | . . . . . Robot Hacks Applied . | . . . . . Relay Couplers Released . | . . . . . Fabnet Peak Effective % . | . . . . . Robots Rewired . | . . . . . Allies Hacked . | . . . . . Hacks Repelled . | . . . . . Allies | -11 -10 -10 -10 -9 -------- Run | Yrd Mat Min Exi Min Total Allies 1 | . . . . 1 Largest Group 1 | . . . . 1 Highest-Rated Group 31 | . . . . 31 Highest-Rated Ally 31 | . . . . 31 Total Orders . | . . . . . Ally Attacks 8 | . . . . 8 Total Damage 63 | . . . . 63 Kills 3 | . . . . 3 Allies Corrupted . | . . . . . Allies Melted . | . . . . . Intel | -11 -10 -10 -10 -9 ------- Run | Yrd Mat Min Exi Min Robot Analysis Total . | . . . . . Derelict Logs Recovered 1 | . . 1 . . Drone Launches . | . . . . . Drone Recoveries . | . . . . . Exploration | -11 -10 -10 -10 -9 ------------- Run | Yrd Mat Min Exi Min Turns Passed 2012 | 91 380 1004 374 163 Spaces Moved 1114 | 43 176 578 228 89 Core 8 | 8 . . . . Treads 1106 | 35 176 578 228 89 Legs . | . . . . . Wheels . | . . . . . Hover . | . . . . . Flight . | . . . . . Fastest Speed 50 | 50 160 160 160 160 Average Speed 162 | 150 170 160 160 166 Slowest Speed 240 | 200 240 240 160 240 Overloaded Moves . | . . . . . Propulsion Burnouts . | . . . . . Robots Hopped . | . . . . . Cave-ins Triggered . | . . . . . Exploration Rate (%) 44 | 4 38 98 60 22 Regions Visited 4 Branch Regions 3 Pre-discovered Areas 1 | . . 1 . . Known Exits Taken 1 | . 1 . . . Unknown Exits Taken 3 | 1 . 1 1 . Scrap Searched 1 | . . 1 . . Spaces Dug . | . . . . . Terrain Destroyed 43 | . . 43 . . Melee . | . . . . . Projectile . | . . . . . AOE 43 | . . 43 . . Terrain Rammed . | . . . . . Walls Destroyed . | . . . . . Machines Disabled . | . . . . . Actions | -11 -10 -10 -10 -9 --------- Run | Yrd Mat Min Exi Min Total 1226 | 56 220 614 240 96 Wait 11 | . 6 4 . 1 Move 1110 | 42 175 577 227 89 Hop . | . . . . . Pick Up 22 | 2 13 5 2 . Fast Attach 12 | 7 2 1 2 . Attach 4 | . . 1 1 2 Detach 1 | . . . 1 . Swap 5 | . 2 2 1 . Drop 9 | . 2 1 6 . Fire 26 | 5 4 15 . 2 Melee 26 | . 16 8 . 2 Ram . | . . . . . Kick . | . . . . . Crush . | . . . . . Escape Stasis . | . . . . . Rewire . | . . . . . Trap . | . . . . . Miscellaneous . | . . . . . Route ------- -11/Scrapyard -10/Materials -10/Mines (discovered 4 exits: [*Mat x2] / *Exi / [*Sub]) -10/Exiles -9/Mines History --------- Turn | Location | Event 12 | -11/Scrapyard | Discovered new exit (range 15) 92 | -11/Scrapyard | Entered Materials 317 | -10/Materials | Build established: Mutant 357 | -10/Materials | Identified exit to Mines 472 | -10/Materials | Entered Mines 482 | -10/Mines | Met a Derelict bent on vengeance 522 | -10/Mines | Discovered new exit (range 16) 549 | -10/Mines | Joined a pair of Derelicts in attacking an 0b10 outpost 642 | -10/Mines | Learned location of Storage (-9) 714 | -10/Mines | Learned Materials emergency access door positions 899 | -10/Mines | Deemed a non-threat by the Exiles lab entrance 900 | -10/Mines | Discovered new exit (range 5) 931 | -10/Mines | Core integrity fell below 50% 978 | -10/Mines | Found a hidden stash of uninstalled traps 1006 | -10/Mines | Discovered new exit (range 3) 1202 | -10/Mines | Discovered new exit (range 15) 1476 | -10/Mines | Entered Exiles 1515 | -10/Exiles | Met 8R-AWN 1544 | -10/Exiles | Met EX-HEX 1590 | -10/Exiles | Met EX-BIN 1609 | -10/Exiles | Aligned with FarCom system 1611 | -10/Exiles | Given EX-Vault access code 1652 | -10/Exiles | Opened EX-Vault 1684 | -10/Exiles | Found Prototype Ballistic Cannon 1717 | -10/Exiles | Warned to stay clear of 0b10 Research branches 1727 | -10/Exiles | Exiles lab attacked by MAIN.C 1832 | -10/Exiles | Discovered new exit (range 14) 1850 | -10/Exiles | Left Exiles lab with AWS/Autocannon 1850 | -10/Exiles | Entered Mines 1853 | -9/Mines | Received a Mining Laser from a helpful Derelict 1952 | -9/Mines | Assembled infested the area 2013 | -9/Mines | Self-destructed Last Messages --------------- 01983_ as-15219 destroyed. 01983_ as-88527 destroyed. 01984_ QBRF WKI%Y,V=P/5TU,Q74OF 01985_ as-66786 destroyed. 01986_ The unstable cave ceiling collapses. 01987_ as-38939 destroyed. 01989_ Lgt. Treads destroyed. 01989_ R-06 Scavenger destroyed. 01990_ The unstable cave ceiling collapses. 01991_ DM-TTZ(g) destroyed. 01992_ 5L-KAT destroyed. 01995_ The unstable cave ceiling collapses. 02008_ Lgt. Treads destroyed. 02008_ Ion Engine destroyed. 02009_ System corrupted: Energy discharge (-34). 02009_ Particle Gun destroyed. 02010_ The unstable cave ceiling collapses. 02010_ Lgt. Armor Plating destroyed. 02012_ The unstable cave ceiling collapses. 02012_ Hvy. Hammer destroyed. Map ----- +----------------------------------------------------+ | | | | | | | | | | | | | | | | | | | | | | | | | ????????????????????#???#????????????????????????? | | #?????????????????????#??????????????????????????? | | ?????#??????????????#??#????????###??????????????? | | ???????????##?????????????###### ##??##?????????? | | #######???#??????########### ## ###???????? | | #?????????## ### ##??????? | | #### #??#?###### ##?????? | | ???# ###### #?????? | | #??# ## ### #????? | | ???# ## #?# #????? | | ???##### ## #?## #?????? | | ???????# ## #??## ### ## #?????? | | ??????## ## #???#### d d #?? #?? ##?????? | | ???????# #??????# @ #???#????####??????? | | ?????#?# ####??????# #??????????????????? | | ???#???# #????????# %#??????????????????? | | ???????# #????????# # ???????????????? | | ??##???# #????????#?# # ??? ????????? | | ???????# #??#???????#### ####???????????? | | ???????# s#?????????????## % #??????????????? | | ???????# #?????????????# #?#????????????? | | ???????# #???????????#?? # ##????????????? | | ???????# #?????????????## # #????????????? | | ???????# ???????????????# ???????????? | | ???????# ????#?????????? ! ?? ?????????? | | ???????# ?????????????? % # #???????????? | | ???????? ????????????? * #?#?????????? | | ???????? ???????????#? #???????????? | | ???????? ???????#????# # ####?? ????????? | | ??????????????????????#############??????????????? | | ?????????????????????????????????????????????????? | | ?????????????????????????????????????????????????? | | ?????????????????????????????????#???????????????? | | ?????????????????????????????????????????????????? | | ?????????????????????????????????????????????????? | | ?????????????????????????????????????????????????? | | ?????????????????????????????????????????????????? | | ?????????????????????????????????????????????????? | +----------------------------------------------------+ Best States ------------- Heat Dissipation 25 Energy Generation 10 Energy Capacity 250 Matter Stores 300 Matter Capacity 300 Sight Range 16 Terrain Scan Range 16 Terrain Scan Density 10 Armor Coverage 150 Evasion (%) 40 Recoil Reduction 2 Item Schematics ----------------- None Robot Schematics ------------------ None Fabricated ------------ Nothing Alien Tech Used ----------------- None Achievements -------------- None Challenges ------------ None Game ------ Seed LightningBiometalStorage Manual? 0 Play Time 00:27:11 Cumulative 26.6 hours Start 2024.08.16 @ 11:37:58 End 2024.08.16 @ 12:18:43 Sessions 1 Manual Loads 0 Difficulty Rogue Special Mode None Game No. 37 Rogue 37 Adventurer 0 Explorer 0 Win Type - Total 0 Types 0/0/0/0/0/0/0/0/0 Lore% 8 Gallery% 19 Achievement% 16 Wizard Run 0 Options --------- Layout 1 ASCII 0 Keyboard 0 Movement Numpad Keybinds 0 Fullscreen 1 Font 32/SmallcapsGlow Map View 50x40 Zoom Use 17% Tactical HUD 1 Map Filters NONE Filters NONE Steam 1 RUN: c771a373-25a1-45dc-bc5c-c56df37b2a24